Cogmind - Beta 15 @@@ ROGUE MODE // 2025.05.12 @ 15:35:29 Player: Darcyisverycute Result: Destroyed by B-86 Titan with Hardcell Cannon Performance ------------- Evolutions (6) 3000 Regions Visited (24) 4800 Robots Destroyed (173) 865 Value Destroyed (6961) 6961 Prototype IDs (230) 4600 Alien Tech Used (1) 200 Bonus (9714) 9714 TOTAL SCORE: 30140 Bonus ------- High Alert Combat Kills 1019 Follower Combat Kills 1125 Network Hubs Disabled 200 Met Data Miner 300 Used Data Conduit 3000 Met Imprinter 300 Destroyed Z-Imprinter 1000 Triggered Deep Caves Wall 500 Exposed GOLEM Chamber 500 Met Zhirov 300 Built Enhanced Grunts 300 Met R17 at Cetus 500 Pursued by Intercept 1000 Friendly Fire -330 Cogmind --------- Core Integrity 0/1150 Matter 121/300 Energy 37/295 System Corruption 70% Temperature Cool (67) Movement Walking (120) Location -3/Proximity Caves Parts ------- > --- POWER (2) -------- Fusion Reactor > --- PROPULSION (7) --- Advanced Myomer Leg Advanced Myomer Leg > --- UTILITY (7) ------ Advanced Sensor Array Advanced Signal Interpreter ECM Suite Experimental Power Shielding > --- WEAPON (3) ------- (None) > --- INVENTORY (5) ---- Advanced Energy Well (500) Particle Accelerator Advanced Hacking Suite Transdimensional Reconstructor Peak State ------------ > --- POWER ------------ Quantum Reactor Light Quantum Reactor > --- PROPULSION ------- Carbon-fiber Leg Flexi-carbon Leg Flexi-carbon Leg Flexi-carbon Leg Myomer Leg Shield Leg > --- UTILITY ---------- Advanced Cooling System Advanced Coolant Injector High-capacity Storage Unit Advanced Signal Interpreter Improved Hacking Suite Advanced Hacking Suite Advanced Hacking Suite > --- WEAPON ----------- Variable Charge Gun Neutron Cannon Matter Neutralizer > --- INVENTORY -------- Improved Heat Sink Zionite Biocell Advanced Sensor Array Advanced Terrain Scanner Launcher Loader Improved Reaction Control System Advanced Phase Shifter Centrium Medium Armor Plating Centrium Medium Armor Plating Graphene Brace Long-range Tractor Beam Linked Autogun Heavy Shock Bomb Launcher Long-range Missile Launcher [Rating: 116] Favorites ----------- Power Quantum Reactor Engine Cooled Deuterium Engine Power Core Neutrino Core Reactor Quantum Reactor Propulsion Carbon-fiber Leg Treads Light Treads Leg Carbon-fiber Leg Wheel Wheel Hover Unit Gravmag System Flight Unit Improved Flight Unit Utility Large Storage Unit Device Improved Sensor Array Storage Large Storage Unit Processor Improved Signal Interpreter Hackware Advanced Hacking Suite Protection Hardened Medium Armor Plating Weapon Enhanced Autogun Energy Gun Spread Laser Energy Cannon Heavy Plasma Cannon Ballistic Gun Enhanced Autogun Ballistic Cannon Bore Cannon Launcher Heavy Shock Bomb Launcher Impact Weapon Heavy Mace Slashing Weapon Phasing Sabre Piercing Weapon CR-A16's Pointy Stick Special Melee Weapon Datajack Build | -11 -10 -10 -8 -7 -7 -7 -7 -7 -6 -6 -6 -6 -6 -5 -5 -5 -5 -5 -5 -4 -4 -4 -4 -3 ------- Run | Yrd Mat Sub Mat Fac Low Low Zio Dee Pro Fac Low Low Dat Pro Fac Ext Cet Arc Hub Fac Upp Upp Zhi Pro Slots Evolved 12 | . . . 4 2 . . . . . 2 . . . . 2 . . . . 2 . . . . Power 1 | . . . . . . . . . . . . . . . 1 . . . . . . . . . Propulsion 5 | . . . 2 1 . . . . . 1 . . . . 1 . . . . . . . . . Utility 5 | . . . 1 1 . . . . . 1 . . . . . . . . . 2 . . . . Weapon 1 | . . . 1 . . . . . . . . . . . . . . . . . . . . . Parts Attached 236 | 7 7 8 23 13 . 3 7 30 9 10 . 1 1 1 12 42 4 11 2 28 8 . 8 1 Power 27 | 1 1 1 3 1 . . . 3 2 . . . . . 3 7 2 . 1 1 . . 1 . Engine 10 | 1 . 1 3 1 . . . . . . . . . . 1 3 . . . . . . . . Core 8 | . 1 . . . . . . 1 1 . . . . . 1 4 . . . . . . . . Reactor 9 | . . . . . . . . 2 1 . . . . . 1 . 2 . 1 1 . . 1 . Propulsion 86 | 2 4 3 9 5 . 1 . 11 4 6 . . 1 1 2 21 . 2 . 9 2 . 3 . Treads 12 | 2 2 . 5 . . . . . . . . . . . . 3 . . . . . . . . Leg 34 | . 1 . 2 . . . . 3 . . . . . . . 18 . 2 . 5 . . 3 . Wheel 3 | . . 1 . . . . . . . . . . . . . . . . . . 2 . . . Hover 24 | . . . . . . . . 8 4 6 . . 1 . 2 . . . . 3 . . . . Flight 13 | . 1 2 2 5 . 1 . . . . . . . 1 . . . . . 1 . . . . Utility 70 | 2 1 1 3 5 . . 2 8 3 4 . 1 . . 3 9 1 6 . 12 5 . 3 1 Device 32 | 1 . . . 2 . . 1 3 2 1 . . . . 1 7 . 4 . 5 3 . 1 1 Storage 8 | 1 1 . 2 1 . . . 1 . 1 . . . . . . . . . 1 . . . . Processor 6 | . . . . 1 . . . . 1 . . . . . . . . . . 2 1 . 1 . Hackware 10 | . . . . 1 . . . . . 2 . . . . 2 1 . 2 . 2 . . . . Protection 14 | . . 1 1 . . . 1 4 . . . 1 . . . 1 1 . . 2 1 . 1 . Artifact . | . . . . . . . . . . . . . . . . . . . . . . . . . Weapon 53 | 2 1 3 8 2 . 2 5 8 . . . . . . 4 5 1 3 1 6 1 . 1 . Energy Gun 14 | 1 1 1 1 . . . . 4 . . . . . . 1 . . 1 . 3 1 . . . Energy Cannon 5 | . . 1 . . . . . . . . . . . . 2 . . . 1 1 . . . . Ballistic Gun 10 | 1 . . 4 . . 1 . 1 . . . . . . 1 . . 1 . 1 . . . . Ballistic Cannon 2 | . . . . . . . . . . . . . . . . 1 . . . . . . 1 . Launcher 13 | . . 1 2 2 . 1 2 1 . . . . . . . 2 1 . . 1 . . . . Special Weapon . | . . . . . . . . . . . . . . . . . . . . . . . . . Impact Weapon 1 | . . . 1 . . . . . . . . . . . . . . . . . . . . . Slashing Weapon 6 | . . . . . . . 3 . . . . . . . . 2 . 1 . . . . . . Piercing Weapon 1 | . . . . . . . . 1 . . . . . . . . . . . . . . . . Special Melee Weapon 1 | . . . . . . . . 1 . . . . . . . . . . . . . . . . Unidentified Prototypes 20 | . 1 . 2 1 . . 1 13 . . . . . . . . . . . 1 . . 1 . Corrupted Parts 25 | . . . . . . . . 6 5 . . . . . . 1 2 1 2 8 . . . . System Corruption 143 | . . . . . . . . 30 18 . . . . . . 3 19 6 8 59 . . . . Parts Lost 97 | . 4 3 4 2 . 2 . 7 4 4 . 1 4 2 1 20 . . . 27 2 . . 10 Power 10 | . 1 . 1 . . . . 2 . . . . . 1 . 3 . . . 2 . . . . Propulsion 47 | . 2 2 1 1 . 2 . 2 4 3 . . 3 . 1 9 . . . 13 . . . 4 Utility 22 | . . . 1 . . . . 3 . 1 . . 1 1 . 4 . . . 5 2 . . 4 Weapon 18 | . 1 1 1 1 . . . . . . . 1 . . . 4 . . . 7 . . . 2 Highest Loss Streak 17 | . 3 2 1 2 . 2 . 4 4 2 . 1 4 2 1 15 . . . 17 1 . . 4 To Critical Strikes 1 | . . 1 . . . . . . . . . . . . . . . . . . . . . . Average Backups 12 | 1 7 8 19 14 14 13 14 12 12 14 15 14 14 13 14 13 13 14 14 12 3 4 3 4 Power . | . 1 1 . . . . . . 2 1 1 1 1 1 . . 1 1 1 . . . . . Propulsion 1 | . 1 1 5 2 1 . . 1 . . 1 1 1 . . . . . . . . . . . Utility 6 | . . . 5 5 7 7 6 4 7 10 11 11 11 10 11 11 10 11 11 8 2 3 3 3 Weapon 3 | . 4 5 7 7 6 6 7 5 2 2 2 1 1 2 2 2 2 2 2 3 . 1 . . Tool/Special . | . . . . . . . . . . . . . . . . . . . . . . . . . Unused Backups 45 | . 2 . 10 . . . 1 13 . 3 . . . . 1 3 2 . 1 5 . . . 4 Power 6 | . . . 1 . . . . 2 . 1 . . . . . 1 1 . . . . . . . Propulsion 5 | . 1 . . . . . . 2 . . . . . . . . . . . 2 . . . . Utility 25 | . . . 4 . . . 1 8 . 2 . . . . 1 1 1 . 1 3 . . . 3 Weapon 8 | . 1 . 5 . . . . 1 . . . . . . . 1 . . . . . . . . Tool/Special 1 | . . . . . . . . . . . . . . . . . . . . . . . . 1 Average Slot Usage (%) 84 | . 96 83 95 84 84 77 87 88 88 90 93 91 79 60 74 89 100 89 100 85 35 52 68 65 Engine 3 | . 9 14 8 7 7 5 6 . . . . . . . 1 2 3 . . . . . . . Core 1 | . 3 . . . . . . 1 . . . . . . 1 4 3 . . . . . . . Reactor 3 | . . . . . . . . 2 7 6 6 6 6 5 5 3 4 11 11 8 . . 4 5 Treads 4 | . 22 10 24 . . . . . . . . . . . . 5 . . . . . . . . Leg 11 | . 3 . 5 . . . . 3 . . . . . . . 25 41 41 41 27 . . 12 14 Wheel 1 | . . 6 2 . . . . . . . . . . . . . . . . . 3 10 10 1 Hover 6 | . . . . . . . . 14 31 34 33 33 31 20 23 1 . . . . 5 5 5 . Flight 6 | . . 1 2 36 38 32 30 14 . . . . . . 1 . . . . . . . . . Device 11 | . 14 12 7 9 14 15 14 4 15 19 20 16 16 12 9 11 11 10 5 8 10 15 16 20 Storage 6 | . 14 14 9 7 7 7 7 7 7 6 6 6 6 6 5 5 5 5 5 4 . . . . Processor 3 | . . . . 6 7 7 7 5 1 6 6 6 6 6 1 . . . . 4 6 10 11 9 Hackware 3 | . . . . 5 . . . . . . . . . . 8 6 5 6 17 12 4 . . . Protection 3 | . . 1 8 . . . . 6 2 . . 3 2 5 . 1 5 1 . 1 1 5 5 5 Energy Gun 3 | . 13 10 3 . . . . 4 7 6 11 4 . . . . . . 5 8 1 5 . . Energy Cannon 1 | . . 5 2 . . . . . . . . . . . 5 5 . . . 3 . . . . Ballistic Gun 3 | . 14 3 18 1 . . . 5 . . . . . . . . . . . . 2 . . 3 Launcher 2 | . . 3 1 . . . . 3 7 1 1 6 . . . 4 17 3 11 1 . . . . Slashing Weapon 3 | . . . . . . . 17 7 . . . . . . . 1 . 4 . . . . . . Piercing Weapon 1 | . . . . . . . . 1 4 6 6 6 5 1 4 2 . . . . . . . . Peak Build Rating 116 | 9 13 15 33 43 38 45 54 94 84 91 86 82 82 64 84 97 92 94 90 116 48 42 103 103 Average Rating 58 | 5 11 11 28 37 38 34 48 57 75 75 85 77 70 57 71 78 84 77 89 99 39 42 70 85 On Entrance 53 | . 9 8 14 31 38 38 29 47 77 75 86 81 82 50 39 80 76 92 90 89 21 42 42 103 Naked Turns . | . . . . . . . . . . . . . . . . . . . . . . . . . Heaviest Build 109 | 14 91 100 101 46 35 41 53 53 49 49 49 50 49 42 75 82 96 96 88 109 29 29 47 43 Greatest Support 125 | 40 40 40 80 35 35 35 20 74 76 65 59 59 59 39 66 115 110 110 110 125 20 20 90 90 Greatest Overweight (x) 25 | . 9 8 25 1 . 1 2 14 1 . . . . 1 1 16 . . . 2 4 1 1 . Average Overweight (x) . | . 1 3 . . . . 1 . . . . . . . . . . . . . 1 1 . . Largest Inventory Capacity 25 | 8 25 25 25 20 15 15 15 15 15 15 15 15 15 15 15 15 15 15 15 20 5 5 5 5 Average Capacity 14 | 6 17 25 20 15 15 15 15 15 15 15 15 15 15 15 15 15 15 15 15 15 5 5 5 5 Most Carried 20 | 2 10 13 20 20 15 15 15 15 14 15 15 15 15 15 15 15 15 15 15 16 5 5 5 5 Average Carried 12 | 1 7 9 19 14 14 13 14 12 12 14 15 14 14 13 14 14 14 14 15 14 3 5 4 4 Final Capacity 25 | 8 25 25 20 15 15 15 15 15 15 15 15 15 15 15 15 15 15 15 15 5 5 5 5 5 Final Carried 20 | 2 9 13 20 15 14 15 15 14 14 15 15 14 15 15 15 15 15 15 15 5 5 5 5 4 Class Distribution -------------------- 32% | Mutant 26% | Scavenger-Mutant 16% | Scavenger-Tank 6% | Scavenger-Skirmisher 3% | Derelict-Mutant 3% | Hacker-Mutant Dominant Class ---------------- Mutant | -10/Materials Mutant | -10/Subcaves Scavenger-Tank | -8/Materials Mutant | -7/Factory Sprinter | -7/Lower Caves Mutant | -7/Lower Caves Mutant | -7/Zion Scavenger-Mutant | -7/Deep Caves Scavenger-Mutant | -6/Proximity Caves Scavenger-Mutant | -6/Factory Scavenger-Mutant | -6/Lower Caves Scavenger-Mutant | -6/Lower Caves Scavenger-Mutant | -6/Data Miner Scavenger-Sprinter | -5/Proximity Caves Scavenger-Mutant | -5/Factory Scavenger-Tank | -5/Extension Scavenger-Tank | -5/Cetus Scavenger-Mutant | -5/Archives Scavenger-Gunner | -5/Hub_04(d) Scavenger-Skirmisher | -4/Factory Mutant | -4/Upper Caves Derelict-Mutant | -4/Upper Caves Mutant | -4/Zhirov Scavenger-Skirmisher | -3/Proximity Caves Resources | -11 -10 -10 -8 -7 -7 -7 -7 -7 -6 -6 -6 -6 -6 -5 -5 -5 -5 -5 -5 -4 -4 -4 -4 -3 ----------- Run | Yrd Mat Sub Mat Fac Low Low Zio Dee Pro Fac Low Low Dat Pro Fac Ext Cet Arc Hub Fac Upp Upp Zhi Pro Matter Collected 6064 | 254 182 115 884 313 117 68 126 637 150 137 82 55 . 2 66 1220 246 175 5 548 383 . 299 . Remotely 176 | . . . . . . . . . . . . . . . . . . . . . 176 . . . Salvage Created 8321 | 132 375 170 1114 357 117 38 . 406 244 216 134 82 . . 56 2216 697 309 . 1301 60 . 297 . Parts 406 | 12 34 3 69 12 . 2 . 32 15 14 3 4 . . 7 94 20 27 . 52 4 . 2 . Haulers Intercepted 5 | . 1 . 3 1 . . . . . . . . . . . . . . . . . . . . Recyclers Shooed 4 | . . . 1 1 . . . . . . . . . . . 1 . . . 1 . . . . Parts Field Recycled . | . . . . . . . . . . . . . . . . . . . . . . . . . Retrieved Matter . | . . . . . . . . . . . . . . . . . . . . . . . . . Parts Self-Destructed 18 | . . 5 . . . . 2 . 3 . 1 7 . . . . . . . . . . . . Prevented 2 | . . . . . . . . . . . 1 1 . . . . . . . . . . . . Kills | -11 -10 -10 -8 -7 -7 -7 -7 -7 -6 -6 -6 -6 -6 -5 -5 -5 -5 -5 -5 -4 -4 -4 -4 -3 ------- Run | Yrd Mat Sub Mat Fac Low Low Zio Dee Pro Fac Low Low Dat Pro Fac Ext Cet Arc Hub Fac Upp Upp Zhi Pro Combat Hostiles Destroyed 112 | . 10 4 19 2 . 1 . 5 4 . 1 3 . . . 37 8 . . 18 . . . . Melee 4 | . . . . . . . . . . . . . . . . 4 . . . . . . . . Guns 25 | . 10 2 10 . . 1 . . 1 . . . . . . . . . . 1 . . . . Cannons 18 | . . 1 1 . . . . . . . . . . . . 13 . . . 3 . . . . AOE 46 | . . 1 8 2 . . . 5 3 . 1 3 . . . 15 1 . . 7 . . . . Classes Destroyed 22 | 2 3 1 5 1 1 1 . 2 2 . . . . . . 2 . . . 2 . . . . Worker 10 | . . . 2 3 . . . . . 3 . . . . 2 . . . . . . . . . Builder 9 | . . . 1 2 . . . . . . . . . . . 6 . . . . . . . . Tunneler 7 | 3 . . 1 1 . . . . . . . . . . . 2 . . . . . . . . Hauler 5 | . 1 . 3 1 . . . . . . . . . . . . . . . . . . . . Recycler 8 | 1 1 . 3 1 . . . . . 1 . . . . . 1 . . . . . . . . Mechanic 2 | . . . . 2 . . . . . . . . . . . . . . . . . . . . Operator 13 | . . . 2 . . . . . . 1 . . . . . 1 . 9 . . . . . . Drone 1 | . . . . . . . . . 1 . . . . . . . . . . . . . . . Watcher 8 | . . . 1 1 . . . . . 1 . . . . 1 2 2 . . . . . . . Swarmer 27 | . 3 . 6 1 . . . . 3 . 1 3 . . . 10 . . . . . . . . Grunt 37 | . 7 . 7 1 . . . . . . . . . . . 13 . . . 9 . . . . Duelist 2 | . . . . . . . . . . . . . . . . . . . . 2 . . . . Sentry 16 | . . . 6 . . . . . . . . . . . . 8 . . . 2 . . . . Hunter 5 | . . . . . . . . . . . . . . . . 5 . . . . . . . . Programmer 2 | . . . . . . . . . . . . . . . . . . . . 2 . . . . Behemoth 2 | . . . . . . . . . . . . . . . . 1 . . . 1 . . . . Cetus Guard 8 | . . . . . . . . . . . . . . . . . 8 . . . . . . . Tracker 1 | . . . . . . . . . . . . . . . . . . . . 1 . . . . Combat Programmer 1 | . . . . . . . . . . . . . . . . . . . . 1 . . . . Subdweller 4 | . . 4 . . . . . . . . . . . . . . . . . . . . . . Z-Light 3 | . . . . . . . . 3 . . . . . . . . . . . . . . . . Decomposer 9 | . . . . . . 2 . . 2 . 2 . . . . . . . . . 3 . . . Samaritan 5 | . . . . . 3 . . . 2 . . . . . . . . . . . . . . . Tinkerer 1 | . . . . . . . . . 1 . . . . . . . . . . . . . . . Thief 1 | . . . . . . 1 . . . . . . . . . . . . . . . . . . Assembled 1 | . . . . . . . . 1 . . . . . . . . . . . . . . . . Best Kill Streak 10 | 4 3 2 5 8 . 1 . 2 3 2 1 3 . . 2 10 5 2 . 4 . . . . Combat Bots Only 10 | . 3 2 3 2 . 1 . 2 3 . 1 3 . . . 10 4 . . 4 . . . . Max Kills in Single Turn 6 | 1 2 1 3 2 1 1 . 1 3 1 1 1 . . 1 6 2 1 . 3 1 . . . Gunslinging . | . . . . . . . . . . . . . . . . . . . . . . . . . Exploded 6 | . . 1 2 2 . . . 1 3 . 1 1 . . . 6 1 . . 3 . . . . Melee 1 | . . . . . . . . . . . . . . . . 1 . . . . . . . . Uniques/NPCs Destroyed 1 | . . . . . . . . 1 . . . . . . . . . . . . . . . . Z-Imprinter (-7/Deep Caves) Combat | -11 -10 -10 -8 -7 -7 -7 -7 -7 -6 -6 -6 -6 -6 -5 -5 -5 -5 -5 -5 -4 -4 -4 -4 -3 -------- Run | Yrd Mat Sub Mat Fac Low Low Zio Dee Pro Fac Low Low Dat Pro Fac Ext Cet Arc Hub Fac Upp Upp Zhi Pro Hostile Shots Fired 1008 | . 74 23 62 39 . 10 . 62 23 28 7 17 7 66 17 206 9 6 17 211 8 11 . 105 Missed 349 | . 13 5 17 16 . 3 . 25 13 12 2 7 3 37 7 56 4 3 7 62 3 6 . 48 Hits 659 | . 61 18 45 23 . 7 . 37 10 16 5 10 4 29 10 150 5 3 10 149 5 5 . 57 Melee 27 | . . . . 2 . 4 . . . . . . . 1 . . . . . 4 . . . 16 Projectile 632 | . 61 18 45 21 . 3 . 37 10 16 5 10 4 28 10 150 5 3 10 145 5 5 . 41 AOE 1 | . . . . . . . . . . . . . . . . . . . . 1 . . . . Critical Strikes 35 | . 1 1 3 1 . . . . 2 . . . . . 2 8 . . 2 6 . . . 9 Damage Taken 14751 | . 886 421 622 362 . 171 . 1161 159 185 83 200 180 525 266 3245 72 78 251 4334 90 51 . 1409 Core 2710 | . 132 77 125 39 . 16 . 220 31 52 . 18 . 186 16 592 . . 42 885 40 . . 239 Absorbed by Shields 685 | . . . . . . . . . . . . . . . . 474 69 . . . . . . 142 Redirected to Shielding 140 | . . . . . . . . . . . . . . . . . . . . . . . . 140 Ignored by Resistances 12 | . . 2 10 . . . . . . . . . . . . . . . . . . . . . Core Remaining (%) 58 | 100 . 16 77 . . . . . 56 . . . . 69 . . . . 35 . . . . . Volleys Fired 493 | 9 39 26 61 8 . 6 . 48 8 1 47 17 . 1 3 74 5 . 9 102 4 7 18 . Largest 3 | 2 2 2 3 2 . 2 . 2 1 1 1 2 . 1 2 3 3 . 1 3 1 1 2 . Hottest 420 | 60 85 145 205 66 . 50 . 133 60 73 73 112 . 73 180 253 138 . 94 420 30 81 136 . Shots Fired 774 | 17 56 31 162 11 . 10 . 61 10 1 47 18 . 1 5 162 15 . 10 129 5 6 16 1 Gun 442 | 17 56 20 147 . . 8 . 33 8 1 45 12 . 1 . 11 . . 9 47 5 6 15 1 Cannon 166 | . . 9 4 . . . . . . . . . . . 5 97 . . 1 49 . . 1 . Launcher 166 | . . 2 11 11 . 2 . 28 2 . 2 6 . . . 54 15 . . 33 . . . . Special . | . . . . . . . . . . . . . . . . . . . . . . . . . Kinetic 207 | 9 18 . 141 . . 8 . 7 . . . . . . . 14 . . . 2 5 . 2 1 Thermal 375 | 8 38 29 10 . . . . 12 . 1 41 12 . 1 5 94 . . 10 94 . 6 14 . Explosive 64 | . . 2 11 11 . 2 . 2 . . . . . . . 27 . . . 9 . . . . Electromagnetic 102 | . . . . . . . . 26 2 . 2 6 . . . 27 15 . . 24 . . . . Phasic 26 | . . . . . . . . 14 8 . 4 . . . . . . . . . . . . . Robot Hit Streak 14 | 3 6 11 7 6 . 5 . 4 6 . . 5 . . 6 13 . . 3 14 3 4 6 1 Robot Miss Streak 13 | 2 13 2 9 2 . 1 . 2 1 . . . . . . 3 . . 1 2 2 1 2 1 Penetration Max 2 | . . . . . . . . . . . . . . . . 2 . . . . . . . . Secondary Targets . | . . . . . . . . . . . . . . . . . . . . . . . . . Shots Hit Robots 420 | 10 39 25 76 22 3 9 . 10 12 9 3 1 1 . 3 99 . 15 7 54 5 4 12 1 Core Hits 333 | 5 43 20 44 11 . 2 . 22 11 5 3 3 . . 2 90 15 7 3 35 3 2 7 . Critical Kills 4 | . . . . 1 . . . . . . . . . . . 3 . . . . . . . . Critical Parts Destroyed 8 | . . . 1 3 . . . . . . . . . . . 4 . . . . . . . . Critical Strikes 21 | . . . 1 4 . . . . 2 1 . . . . . 13 . . . . . . . . Destroy 10 | . . . 1 . . . . . . . . . . . . 9 . . . . . . . . Smash 4 | . . . . 4 . . . . . . . . . . . . . . . . . . . . Sever 3 | . . . . . . . . . . . . . . . . 3 . . . . . . . . Impale 3 | . . . . . . . . . 1 1 . . . . . 1 . . . . . . . . Intensify 1 | . . . . . . . . . 1 . . . . . . . . . . . . . . . Melee Attacks 128 | . . . 3 28 4 6 . . 4 19 5 . 5 3 6 30 . 15 . . . . . . Impact 41 | . . . 3 28 4 6 . . . . . . . . . . . . . . . . . . Slashing 29 | . . . . . . . . . . . . . . . . 14 . 15 . . . . . . Piercing 58 | . . . . . . . . . 4 19 5 . 5 3 6 16 . . . . . . . . Sneak Attacks 43 | . . . 1 10 3 2 . . 4 6 2 . 1 . 1 2 . 11 . . . . . . Combat Hostiles . | . . . . . . . . . . . . . . . . . . . . . . . . . Follow-up Attacks 4 | . . . . . . . . . . . . . . . . 4 . . . . . . . . Damage Inflicted 22185 | 119 478 475 2325 1726 258 240 . 847 707 569 387 216 97 . 195 6867 1210 1317 226 3334 116 106 370 . Guns 3890 | 119 474 288 1230 . . 113 . 84 198 . . 33 . . . 223 . . 182 409 116 106 315 . Cannons 3445 | . . 116 83 . . . . . . . . . . . 34 2167 . . 44 946 . . 55 . Explosions 9388 | . . 71 853 377 . . . 763 211 . 144 183 . . . 3606 1210 . . 1970 . . . . Melee 5449 | . . . 159 1349 258 127 . . 298 569 243 . 97 . 161 871 . 1317 . . . . . . Ramming 13 | . 4 . . . . . . . . . . . . . . . . . . 9 . . . . Kinetic 2099 | 63 133 . 1153 . . 113 . 57 . . . . . . . 341 . . . 68 116 . 55 . Thermal 5536 | 56 341 404 160 . . . . 73 79 . . 33 . . 34 2081 176 . 226 1452 . 106 315 . Explosive 3667 | . . 71 853 377 . . . 61 . . . . . . . 1730 . . . 575 . . . . Electromagnetic 5223 | . . . . . . . . 656 132 . 144 183 . . . 1844 1034 . . 1230 . . . . Impact 1893 | . . . 159 1349 258 127 . . . . . . . . . . . . . . . . . . Slashing 1904 | . . . . . . . . . . . . . . . . 587 . 1317 . . . . . . Piercing 1652 | . . . . . . . . . 298 569 243 . 97 . 161 284 . . . . . . . . Phasic 198 | . . . . . . . . . 198 . . . . . . . . . . . . . . . Highest Corruption 70 | . 4 4 . . . . . 30 48 . . 1 1 1 . 3 19 25 8 69 70 70 70 70 Average Corruption 32 | . 4 4 . . . . . 20 33 . . 1 1 1 . 2 18 17 4 40 70 70 70 70 Corruption Purged 28 | . . . . . . . . . . . . . . . . 3 . 25 . . . . . . Corruption Blocked . | . . . . . . . . . . . . . . . . . . . . . . . . . Effects 315 | . 14 11 . . . . . 34 11 . . 1 2 . . 6 6 17 . 71 44 17 40 41 Message Errors 60 | . 4 2 . . . . . 7 2 . . . 1 . . 1 . 7 . 11 12 6 3 4 Matter Fused 72 | . 4 2 . . . . . 10 1 . . . 1 . . 1 4 2 . 11 13 5 11 7 Heat Flow Errors 37 | . 2 2 . . . . . 3 3 . . . . . . 2 1 2 . 5 8 1 7 1 Energy Discharges 31 | . 1 1 . . . . . 1 . . . . . . . 2 . 3 . 8 3 3 7 2 Parts Rejected 6 | . . . . . . . . . . . . . . . . . . . . 2 . . . 4 Parts Fused 1 | . . 1 . . . . . . . . . . . . . . . . . . . . . . Data Loss (minor) 28 | . 2 1 . . . . . 3 1 . . 1 . . . . 1 1 . 7 . 1 7 3 Data Loss (major) 8 | . . 2 . . . . . 1 1 . . . . . . . . 1 . 1 1 . . 1 Misfires 10 | . . . . . . . . 2 2 . . . . . . . . . . 3 1 . 1 1 Alerts 7 | . . . . . . . . . . . . . . . . . . 1 . 2 4 . . . Misdirections 33 | . . . . . . . . 3 1 . . . . . . . . . . 9 2 . . 18 Weapon Failures 22 | . 1 . . . . . . 4 . . . . . . . . . . . 12 . 1 4 . Overload Shots 1 | . . . . . . . . . . . . . . . . . . . . 1 . . . . Overflow Damage 2270 | . . . 137 691 246 131 . 12 78 168 50 18 . . 19 295 . 346 . 24 . . 55 . Projectiles 89 | . . . . . . . . . . . . . . . 19 6 . . . 9 . . 55 . Explosions 304 | . . . 33 . . 28 . 12 2 . . 18 . . . 196 . . . 15 . . . . Melee 1877 | . . . 104 691 246 103 . . 76 168 50 . . . . 93 . 346 . . . . . . Knockbacks 4 | . . . . 2 . . . . . . . . . . . . . . . . . . 2 . Impact 2 | . . . . 2 . . . . . . . . . . . . . . . . . . . . Kinetic 1 | . . . . . . . . . . . . . . . . . . . . . . . 1 . Secondary 1 | . . . . . . . . . . . . . . . . . . . . . . . 1 . Self-Inflicted Damage 506 | . . 51 63 . . 59 . . . . . 30 . . . 59 8 . . 236 . . . . Shots 22 | . . 2 2 . . 2 . . . . . 4 . . . 2 1 . . 9 . . . . Rammed 4 | . 1 . . . . . . . . . . . . . . . . . . 3 . . . . Targets Rammed 4 | . 1 . . . . . . . . . . . . . . . . . . 3 . . . . Kicked . | . . . . . . . . . . . . . . . . . . . . . . . . . Crushed . | . . . . . . . . . . . . . . . . . . . . . . . . . Highest Temperature 346 | . 305 258 320 12 . . . 217 229 130 300 134 169 2 309 187 152 219 200 346 241 134 208 334 Average Temperature 72 | . 93 107 90 6 . . . 50 94 47 51 48 56 1 120 35 87 97 89 82 89 66 63 152 Received Heat Transfer 3206 | . 372 60 243 72 . 27 . 249 102 27 18 36 . 168 45 691 . 9 45 469 18 . . 555 Effects 3 | . . . 2 . . . . . . . . . . . . . . . . 1 . . . . Energy Bleed 1 | . . . . . . . . . . . . . . . . . . . . 1 . . . . Interference 2 | . . . 2 . . . . . . . . . . . . . . . . . . . . . Siege Activations . | . . . . . . . . . . . . . . . . . . . . . . . . . Martial Activations . | . . . . . . . . . . . . . . . . . . . . . . . . . Shielding Activations . | . . . . . . . . . . . . . . . . . . . . . . . . . Robots Disrupted 2 | . . . . . . . . 1 . . . . . . . . . . 1 . . . . . Combat Hostiles 1 | . . . . . . . . 1 . . . . . . . . . . . . . . . . Robots Corrupted 22 | . . . 2 1 1 1 . . . . . . . . . 3 7 . . 6 . . 1 . Combat Hostiles 16 | . . . . . . . . . . . . . . . . 3 7 . . 6 . . . . Parts Fried 40 | . . . 3 7 4 1 . 1 . . . 1 . . . 6 7 . . 9 . . 1 . Impact Corruptions 42 | . . . 4 14 14 8 . . . . . . . . . . . . . . . . 2 . Robots Melted 3 | . . . . . . . . . . . . . . . . 2 . . . 1 . . . . Combat Hostiles 3 | . . . . . . . . . . . . . . . . 2 . . . 1 . . . . Parts Melted 8 | . . . . . . . . . . . . . . . . 7 . . . 1 . . . . Heat Transferred 6342 | 125 435 513 211 . . . . 137 50 . . 37 . . 50 2872 200 . 222 1075 . 148 267 . Parts Sabotaged 5 | . . . . . . . . . . . . . . 2 . . . . . 3 . . . . Parts Stolen 1 | . . . . . . 1 . . . . . . . . . . . . . . . . . . Parts Stripped . | . . . . . . . . . . . . . . . . . . . . . . . . . Power Chain Reactions 10 | . . . . . . . . 4 1 . . . . . . 2 2 . . 1 . . . . Alert | -11 -10 -10 -8 -7 -7 -7 -7 -7 -6 -6 -6 -6 -6 -5 -5 -5 -5 -5 -5 -4 -4 -4 -4 -3 ------- Run | Yrd Mat Sub Mat Fac Low Low Zio Dee Pro Fac Low Low Dat Pro Fac Ext Cet Arc Hub Fac Upp Upp Zhi Pro Maximum Alert Level 4 | . 1 . 1 . . . . . . . . . . . . 4 3 2 2 2 . . . . Low Security (%) 52 | 100 98 . 55 100 . . . . . 100 . . . . 100 58 . . 34 19 . . . . Level 1 29 | . 1 . 44 . . . . . . . . . . . . 23 . 39 25 67 . . . . Level 2 11 | . . . . . . . . . . . . . . . . 12 . 60 39 12 . . . . Level 3 5 | . . . . . . . . . . . . . . . . 4 100 . . . . . . . Level 4 . | . . . . . . . . . . . . . . . . 1 . . . . . . . . Level 5 . | . . . . . . . . . . . . . . . . . . . . . . . . . High Security . | . . . . . . . . . . . . . . . . . . . . . . . . . Max Security . | . . . . . . . . . . . . . . . . . . . . . . . . . Peak Influence 1518 | 10 200 . 262 97 . . . . . 128 . . . . 9 1518 1076 535 655 561 . . . . Initial 848 | . . . . 85 . . . . . 84 . . . . . . 848 398 95 270 . . . . Average 245 | 1 90 . 169 67 . . . . . 50 . . . . 1 228 984 421 317 298 . . . . Influence Increases 6961 | 20 342 . 747 192 . 195 . . 255 230 175 145 . . 34 2246 328 297 628 932 150 15 15 15 Destroy 0b10 Robot/C 2500 | . 200 . 380 40 . . . . 60 . 20 60 . . . 940 160 80 200 360 . . . . Destroy 0b10 Robot/NC 350 | 20 10 . 65 55 . . . . 5 30 5 . . . 15 65 10 45 10 . . . 15 . Destroy Leader 446 | . 42 . 98 4 . . . . 10 2 . 10 . . 2 146 . . 42 90 . . . . Allied During Kill 1080 | . . . . . . . . . . . . . . . . 563 140 125 252 . . . . . Successful Hack 111 | . . . 30 . . . . . . 9 . . . . 7 46 . . . 19 . . . . Select Force Hacks 50 | . . . . . . . . . . . . . . . . . . . 50 . . . . . Disable Machine 495 | . 15 . 90 30 . . . . . . . . . . . 75 . 45 30 210 . . . . Destroy Structure 684 | . . . 84 33 . . . . . 9 . . . . 10 366 18 2 44 118 . . . . Partial Spotted 15 | . . . . . . . . . . 15 . . . . . . . . . . . . . . Lose Combat Pursuer 1230 | . 75 . . 30 . 195 . . 180 165 150 75 . . . 45 . . . 135 150 15 . 15 Influence Decreases 6961 | 20 316 26 558 294 63 159 60 . 120 247 191 151 96 . 34 730 848 1020 348 1384 212 54 15 15 Entered New Map 2203 | . . 14 . 104 33 6 60 . . 51 45 21 96 . . . 668 598 178 283 38 8 . . Time Decay 3460 | 20 276 12 518 170 30 133 . . 80 156 146 120 . . 34 485 180 362 50 448 164 46 15 15 Lost Part 500 | . 40 . 40 20 . 20 . . 40 30 . 10 . . . 82 . . . 208 10 . . . Lost Ally 353 | . . . . . . . . . . 10 . . . . . 163 . 60 120 . . . . . Purge Threat 445 | . . . . . . . . . . . . . . . . . . . . 445 . . . . Squads Dispatched 34 | . 1 . 3 3 . . . . . 5 . . . 1 3 5 . . 4 9 . . . . Investigation 8 | . 1 . . . . . . . . 1 . . . . . 1 . . 3 2 . . . . Extermination 6 | . . . . 1 . . . . . 1 . . . . 1 . . . . 3 . . . . Reinforcement 13 | . . . 2 2 . . . . . 3 . . . . 1 4 . . 1 . . . . . Assault 3 | . . . . . . . . . . . . . . 1 . . . . . 2 . . . . Garrison 1 | . . . 1 . . . . . . . . . . . . . . . . . . . . . Intercept 3 | . . . . . . . . . . . . . . . 1 . . . . 2 . . . . Searches Triggered . | . . . . . . . . . . . . . . . . . . . . . . . . . Construction Impeded 4 | . . . . . . . . . . 1 . . . . . 3 . . . . . . . . Haulers Reinforced 1 | . . . . 1 . . . . . . . . . . . . . . . . . . . . Active Scanning Responses . | . . . . . . . . . . . . . . . . . . . . . . . . . Cargo Convoy Interrupts . | . . . . . . . . . . . . . . . . . . . . . . . . . Stealth | -11 -10 -10 -8 -7 -7 -7 -7 -7 -6 -6 -6 -6 -6 -5 -5 -5 -5 -5 -5 -4 -4 -4 -4 -3 --------- Run | Yrd Mat Sub Mat Fac Low Low Zio Dee Pro Fac Low Low Dat Pro Fac Ext Cet Arc Hub Fac Upp Upp Zhi Pro Distress Signals 15 | . 3 . 2 . . . . . . . . . . . . 5 2 . 2 1 . . . . Communications Jammed . | . . . . . . . . . . . . . . . . . . . . . . . . . Distress Signals . | . . . . . . . . . . . . . . . . . . . . . . . . . Times Spotted 384 | . 18 6 34 11 . 16 . 47 16 17 13 8 4 19 6 54 7 9 16 40 8 1 . 34 Peak Tracking Total 38 | . 7 2 6 4 . 7 . 38 9 6 9 4 4 23 4 10 5 3 9 11 3 1 . 14 Tactical Retreats 48 | . 2 . . 2 . 6 . 1 4 5 4 4 . . . 3 . . . 2 4 1 . 10 Traps | -11 -10 -10 -8 -7 -7 -7 -7 -7 -6 -6 -6 -6 -6 -5 -5 -5 -5 -5 -5 -4 -4 -4 -4 -3 ------- Run | Yrd Mat Sub Mat Fac Low Low Zio Dee Pro Fac Low Low Dat Pro Fac Ext Cet Arc Hub Fac Upp Upp Zhi Pro Traps Triggered 9 | . 1 . . 1 . . . . . . . . . . 1 1 . . . 5 . . . . Indirectly 2 | . . . . . . . . . . . . . . . . . . . . 2 . . . . Trap Hack Attempts . | . . . . . . . . . . . . . . . . . . . . . . . . . Triggered . | . . . . . . . . . . . . . . . . . . . . . . . . . Disarmed . | . . . . . . . . . . . . . . . . . . . . . . . . . Reprogrammed . | . . . . . . . . . . . . . . . . . . . . . . . . . Reused . | . . . . . . . . . . . . . . . . . . . . . . . . . Traps Extracted . | . . . . . . . . . . . . . . . . . . . . . . . . . Installed . | . . . . . . . . . . . . . . . . . . . . . . . . . Triggered . | . . . . . . . . . . . . . . . . . . . . . . . . . Machines | -11 -10 -10 -8 -7 -7 -7 -7 -7 -6 -6 -6 -6 -6 -5 -5 -5 -5 -5 -5 -4 -4 -4 -4 -3 ---------- Run | Yrd Mat Sub Mat Fac Low Low Zio Dee Pro Fac Low Low Dat Pro Fac Ext Cet Arc Hub Fac Upp Upp Zhi Pro Machines Disabled 38 | . 1 . 6 2 . . . 3 . . . . . . . 7 . 3 2 14 . . . . Max in Single Turn 5 | . 1 . 1 1 . . . 1 . . . . . . . 3 . . . 5 . . . . Garrison Access 2 | . . . 1 . . . . . . . . . . . . . . . . 1 . . . . Network Hub 1 | . . . . . . . . . . . . . . . . . . . 1 . . . . . Machines Repaired . | . . . . . . . . . . . . . . . . . . . . . . . . . Machines Dismantled . | . . . . . . . . . . . . . . . . . . . . . . . . . Machines Sabotaged 1 | . . . . . . . . . . . . . . . . . . . 1 . . . . . Overloaded Fab Kills . | . . . . . . . . . . . . . . . . . . . . . . . . . Hacking | -11 -10 -10 -8 -7 -7 -7 -7 -7 -6 -6 -6 -6 -6 -5 -5 -5 -5 -5 -5 -4 -4 -4 -4 -3 --------- Run | Yrd Mat Sub Mat Fac Low Low Zio Dee Pro Fac Low Low Dat Pro Fac Ext Cet Arc Hub Fac Upp Upp Zhi Pro Machines Accessed 47 | . 1 . 5 1 . . . . . 6 . . 4 . 4 12 . . 3 6 1 . 4 . Terminals 34 | . . . 4 1 . . . . . 4 . . . . 4 12 . . 3 6 . . . . Fabricators . | . . . . . . . . . . . . . . . . . . . . . . . . . Repair Stations . | . . . . . . . . . . . . . . . . . . . . . . . . . Recycling Units 1 | . 1 . . . . . . . . . . . . . . . . . . . . . . . Scanalyzers . | . . . . . . . . . . . . . . . . . . . . . . . . . Garrison Access 3 | . . . 1 . . . . . . 2 . . . . . . . . . . . . . . Total Hacks 140 | . 5 . 18 1 . . . . . 15 . . 30 . 8 24 . . 4 22 1 . 12 . Successful 81 | . 3 . 6 . . . . . . 5 . . 30 . 2 10 . . 4 8 1 . 12 . Failed 59 | . 2 . 12 1 . . . . . 10 . . . . 6 14 . . . 14 . . . . Catastrophic 15 | . . . 1 1 . . . . . 3 . . . . 3 3 . . . 4 . . . . Database Lockouts . | . . . . . . . . . . . . . . . . . . . . . . . . . Manual 46 | . 4 . 11 1 . . 4 . . 4 . . . . 6 1 1 . 4 10 . . . . Terminals 84 | . . . 16 1 . . . . . 9 . . . . 8 24 . . 4 22 . . . . Fabricators . | . . . . . . . . . . . . . . . . . . . . . . . . . Repair Stations . | . . . . . . . . . . . . . . . . . . . . . . . . . Recycling Units 5 | . 5 . . . . . . . . . . . . . . . . . . . . . . . Scanalyzers . | . . . . . . . . . . . . . . . . . . . . . . . . . Garrison Access 8 | . . . 2 . . . . . . 6 . . . . . . . . . . . . . . Terminal Hacks 71 | . . . 5 . . . . . . 4 . . 30 . 2 10 . . . 7 1 . 12 . Record 16 | . . . . . . . . . . . . . 11 . . . . . . . . . 5 . Part Schematic 12 | . . . . . . . . . . . . . 9 . . . . . . . . . 3 . Robot Schematic 7 | . . . . . . . . . . . . . 7 . . . . . . . . . . . Prototype ID Bank 8 | . . . 1 . . . . . . . . . 3 . . . . . . . . . 4 . Open Door 9 | . . . . . . . . . . . . . . . . 8 . . . . 1 . . . Level Access Points 1 | . . . 1 . . . . . . . . . . . . . . . . . . . . . Branch Access Points 5 | . . . 2 . . . . . . 1 . . . . 1 . . . . 1 . . . . Emergency Access Points 1 | . . . . . . . . . . 1 . . . . . . . . . . . . . . Alert Level 4 | . . . . . . . . . . 1 . . . . . 1 . . . 2 . . . . Unreport Threat 3 | . . . . . . . . . . . . . . . . . . . . 3 . . . . Assault Status 1 | . . . . . . . . . . . . . . . . 1 . . . . . . . . Recall Extermination 1 | . . . . . . . . . . 1 . . . . . . . . . . . . . . Registered Prototypes 1 | . . . . . . . . . . . . . . . 1 . . . . . . . . . Zone Layout 2 | . . . 1 . . . . . . . . . . . . . . . . 1 . . . . Fabricator Hacks . | . . . . . . . . . . . . . . . . . . . . . . . . . Repair Station Hacks . | . . . . . . . . . . . . . . . . . . . . . . . . . Recycling Unit Hacks 1 | . 1 . . . . . . . . . . . . . . . . . . . . . . . Retrieve Components 1 | . 1 . . . . . . . . . . . . . . . . . . . . . . . Scanalyzer . | . . . . . . . . . . . . . . . . . . . . . . . . . Garrison Access Hacks 1 | . . . 1 . . . . . . . . . . . . . . . . . . . . . Seal Access 1 | . . . 1 . . . . . . . . . . . . . . . . . . . . . Unauthorized Hacks 8 | . 2 . . . . . . . . 1 . . . . . . . . 4 1 . . . . Terminals 6 | . . . . . . . . . . 1 . . . . . . . . 4 1 . . . . Assimilate 1 | . . . . . . . . . . 1 . . . . . . . . . . . . . . Botnet 2 | . . . . . . . . . . . . . . . . . . . 1 1 . . . . Sabotage 3 | . . . . . . . . . . . . . . . . . . . 3 . . . . . Fabricators . | . . . . . . . . . . . . . . . . . . . . . . . . . Repair Stations . | . . . . . . . . . . . . . . . . . . . . . . . . . Recycling Units 2 | . 2 . . . . . . . . . . . . . . . . . . . . . . . Reject 1 | . 1 . . . . . . . . . . . . . . . . . . . . . . . Mask 1 | . 1 . . . . . . . . . . . . . . . . . . . . . . . Scanalyzers . | . . . . . . . . . . . . . . . . . . . . . . . . . Garrison Access . | . . . . . . . . . . . . . . . . . . . . . . . . . Data Cores Recovered 1 | . . . 1 . . . . . . . . . . . . . . . . . . . . . Used . | . . . . . . . . . . . . . . . . . . . . . . . . . Hacking Detections 27 | . 1 . 4 1 . . . . . 6 . . . . 4 5 . . . 6 . . . . Full Trace Events 4 | . . . . . . . . . . 1 . . . . . 1 . . . 2 . . . . Feedback Events 1 | . . . . . . . . . . 1 . . . . . . . . . . . . . . Hackware Fried 1 | . . . . . . . . . . 1 . . . . . . . . . . . . . . Feedback Blocked . | . . . . . . . . . . . . . . . . . . . . . . . . . Robot Schematics Acquired 10 | . . . . . . . 3 . . . . . 7 . . . . . . . . . . . Robots Built . | . . . . . . . . . . . . . . . . . . . . . . . . . Authchips . | . . . . . . . . . . . . . . . . . . . . . . . . . Time . | . . . . . . . . . . . . . . . . . . . . . . . . . Total Robot Build Rating . | . . . . . . . . . . . . . . . . . . . . . . . . . Part Schematics Acquired 26 | . . . . . . . 14 . . . . . 9 . . . . . . . . . 3 . Parts Built . | . . . . . . . . . . . . . . . . . . . . . . . . . Authchips . | . . . . . . . . . . . . . . . . . . . . . . . . . Time . | . . . . . . . . . . . . . . . . . . . . . . . . . Total Part Build Rating . | . . . . . . . . . . . . . . . . . . . . . . . . . Parts Repaired . | . . . . . . . . . . . . . . . . . . . . . . . . . Time . | . . . . . . . . . . . . . . . . . . . . . . . . . Parts Recycled . | . . . . . . . . . . . . . . . . . . . . . . . . . Recycled Matter . | . . . . . . . . . . . . . . . . . . . . . . . . . Retrieved Matter . | . . . . . . . . . . . . . . . . . . . . . . . . . Retrieved Components . | . . . . . . . . . . . . . . . . . . . . . . . . . Parts Scanalyzed . | . . . . . . . . . . . . . . . . . . . . . . . . . Part Schematics Acquired . | . . . . . . . . . . . . . . . . . . . . . . . . . Parts Damaged . | . . . . . . . . . . . . . . . . . . . . . . . . . Bothacking | -11 -10 -10 -8 -7 -7 -7 -7 -7 -6 -6 -6 -6 -6 -5 -5 -5 -5 -5 -5 -4 -4 -4 -4 -3 ------------ Run | Yrd Mat Sub Mat Fac Low Low Zio Dee Pro Fac Low Low Dat Pro Fac Ext Cet Arc Hub Fac Upp Upp Zhi Pro Used RIF Installer . | . . . . . . . . . . . . . . . . . . . . . . . . . Robots Hacked . | . . . . . . . . . . . . . . . . . . . . . . . . . Non-combat . | . . . . . . . . . . . . . . . . . . . . . . . . . Combat . | . . . . . . . . . . . . . . . . . . . . . . . . . Robot Hacks Applied . | . . . . . . . . . . . . . . . . . . . . . . . . . Relay Couplers Released 1 | . . . . . . . . . . . . . . . . . . . . 1 . . . . Machine Destruction 1 | . . . . . . . . . . . . . . . . . . . . 1 . . . . Fabnet Peak Effective % . | . . . . . . . . . . . . . . . . . . . . . . . . . Robots Rewired 11 | . . . . . . . . . . . . . . . . 11 . . . . . . . . Allies Hacked . | . . . . . . . . . . . . . . . . . . . . . . . . . Hacks Repelled . | . . . . . . . . . . . . . . . . . . . . . . . . . Allies | -11 -10 -10 -8 -7 -7 -7 -7 -7 -6 -6 -6 -6 -6 -5 -5 -5 -5 -5 -5 -4 -4 -4 -4 -3 -------- Run | Yrd Mat Sub Mat Fac Low Low Zio Dee Pro Fac Low Low Dat Pro Fac Ext Cet Arc Hub Fac Upp Upp Zhi Pro Total Allies 31 | . . . . . . . 4 . . 1 . . . . . 21 5 . . . . . . . Largest Group 12 | . . . . . . . 4 4 . 1 . . . . . 12 12 12 7 . . . . . Highest-Rated Group 797 | . . . . . . . 144 144 . 10 . . . . . 357 797 797 544 . . . . . Highest-Rated Ally 159 | . . . . . . . 51 51 . 10 . . . . . 159 159 159 96 . . . . . Total Orders 3 | . . . . . . . . . . . . . . . 2 1 . . . . . . . . AID 1 | . . . . . . . . . . . . . . . . 1 . . . . . . . . EXPLORE 2 | . . . . . . . . . . . . . . . 2 . . . . . . . . . Ally Attacks 383 | . . . . . . . . 130 . . . . . . . 157 12 28 56 . . . . . Total Damage 8345 | . . . . . . . . 1824 . . . . . . . 3047 268 874 2332 . . . . . Kills 51 | . . . . . . . . 21 . . . . . . . 13 . 4 13 . . . . . Allies Corrupted 3 | . . . . . . . . 1 . . . . . . . . . . 2 . . . . . Allies Melted 1 | . . . . . . . . . . . . . . . . 1 . . . . . . . . Turrets Deployed 1 | . . . . . . . . 1 . . . . . . . . . . . . . . . . Intel | -11 -10 -10 -8 -7 -7 -7 -7 -7 -6 -6 -6 -6 -6 -5 -5 -5 -5 -5 -5 -4 -4 -4 -4 -3 ------- Run | Yrd Mat Sub Mat Fac Low Low Zio Dee Pro Fac Low Low Dat Pro Fac Ext Cet Arc Hub Fac Upp Upp Zhi Pro Active Infowar (turns) 8799 | 27 723 394 1237 159 78 335 1621 212 43 378 400 253 137 140 180 . . . . 817 463 208 627 367 Optics 1447 | . . . . . . . . . 43 378 400 253 137 140 96 . . . . . . . . . Sensors 5662 | . . . . 146 78 335 1621 212 . 294 400 253 81 . 137 . . . . 526 463 139 627 350 Terrain 2739 | 27 723 394 1237 40 . 27 . . . . . . . . . . . . . 291 . . . . ECM 392 | . . . . . . . . . . . . . . . . . . . . . 9 89 . 294 Robot Analysis Total 151 | . . . . . . . . . . . . . 151 . . . . . . . . . . . Derelict Logs Recovered 7 | . . 1 . . . 1 2 . . . 1 . . 1 . . . . . . . 1 . . Drone Launches 3 | . . . . . . . . . . . . . . . 3 . . . . . . . . . Drone Recoveries 1 | . . . . . . . . . . . . . . . 1 . . . . . . . . . Exploration | -11 -10 -10 -8 -7 -7 -7 -7 -7 -6 -6 -6 -6 -6 -5 -5 -5 -5 -5 -5 -4 -4 -4 -4 -3 ------------- Run | Yrd Mat Sub Mat Fac Low Low Zio Dee Pro Fac Low Low Dat Pro Fac Ext Cet Arc Hub Fac Upp Upp Zhi Pro Turns Passed 15381 | 118 723 456 1534 351 79 335 1621 1723 192 378 400 253 137 140 265 2187 378 822 103 1167 736 289 627 367 Spaces Moved 12520 | 51 224 171 745 519 244 406 1047 1471 311 712 563 435 240 337 407 1235 281 619 68 730 668 277 468 291 Core 404 | 1 . . . . . . . 15 . . . . . . . 2 . . . 29 357 . . . Treads 876 | 50 199 49 546 . . . . . . . . . . . . 32 . . . . . . . . Legs 3550 | . 25 . 23 . . . . 205 . . . . . . . 1081 281 619 68 571 . . 386 291 Wheels 886 | . . 119 175 . . . . . . . . . . . . . . . . . 233 277 82 . Hover 4143 | . . . . . . . . 812 311 712 563 435 240 337 407 120 . . . 128 78 . . . Flight 2661 | . . 3 1 519 244 406 1047 439 . . . . . . . . . . . 2 . . . . Fastest Speed 21 | 50 160 150 130 26 27 27 101 22 22 21 24 24 24 29 24 112 120 120 120 36 40 95 95 120 Average Speed 100 | 157 267 222 175 37 27 62 150 98 44 38 46 46 41 35 48 135 120 120 120 106 99 95 115 120 Slowest Speed 2055 | 160 750 597 2055 102 27 104 171 750 122 48 48 48 53 89 113 850 120 120 120 260 250 95 120 120 Overloaded Moves . | . . . . . . . . . . . . . . . . . . . . . . . . . Propulsion Burnouts . | . . . . . . . . . . . . . . . . . . . . . . . . . Robots Hopped 4 | . . . . . . 1 . . . . . . . . . 1 . 2 . . . . . . Potential Cave-ins 4 | . . . . . . . . . . . 2 . . . 2 . . . . . . . . . Cave-ins Triggered . | . . . . . . . . . . . . . . . . . . . . . . . . . Exploration Rate (%) 51 | 5 29 12 61 21 48 65 87 81 55 28 62 61 82 59 15 97 56 97 10 27 78 54 60 46 Regions Visited 24 Branch Regions 18 Pre-discovered Areas 38 | . . . . . . . 4 . . . 1 . 29 . . . . . . . . 1 3 . Known Exits Taken 12 | . . . 1 1 1 1 1 . 1 1 . . . . 1 . . . . 1 1 1 1 . Unknown Exits Taken 12 | 1 1 1 . . . . . 1 . . 1 1 1 1 . 1 1 1 1 . . . . . Scrap Searched 11 | . . 4 . . . 1 2 . 1 . . 1 . . . . . . . . 2 . . . Spaces Dug 142 | . . . . 7 1 23 . 22 . 9 21 11 . 4 6 6 . . . 32 . . . . Terrain Destroyed 653 | . . 8 98 39 1 23 . 72 8 9 47 11 . 4 7 236 22 . 1 67 . . . . Melee 27 | . . . . 7 1 3 . . . 8 2 . . 3 3 . . . . . . . . . Projectile 165 | . . . 1 . . . . 22 2 1 45 11 . 1 4 39 . . 1 38 . . . . AOE 461 | . . 8 97 32 . 20 . 50 6 . . . . . . 197 22 . . 29 . . . . Terrain Rammed . | . . . . . . . . . . . . . . . . . . . . . . . . . Walls Destroyed . | . . . . . . . . . . . . . . . . . . . . . . . . . Machines Disabled . | . . . . . . . . . . . . . . . . . . . . . . . . . Actions | -11 -10 -10 -8 -7 -7 -7 -7 -7 -6 -6 -6 -6 -6 -5 -5 -5 -5 -5 -5 -4 -4 -4 -4 -3 --------- Run | Yrd Mat Sub Mat Fac Low Low Zio Dee Pro Fac Low Low Dat Pro Fac Ext Cet Arc Hub Fac Upp Upp Zhi Pro Total 14379 | 68 292 215 899 619 248 469 1095 1697 342 773 641 465 267 350 458 1556 312 673 80 991 733 297 538 301 Wait 427 | . 2 2 9 25 . 37 32 53 3 8 25 11 17 . 3 19 12 18 . 65 48 14 24 . Move 12488 | 50 223 170 744 518 243 403 1046 1470 310 711 562 434 239 336 406 1232 280 614 67 729 667 276 467 291 Hop 4 | . . . . . . 1 . . . . . . . . . 1 . 2 . . . . . . Pick Up 147 | 2 9 7 25 7 . 1 4 26 4 8 . . . 1 8 14 4 1 1 18 1 . 6 . Fast Attach 172 | 7 5 1 17 2 . 1 4 26 2 6 . . . 2 10 37 3 10 . 14 8 . 10 7 Attach 86 | . 2 5 4 10 . 6 1 6 5 2 . 1 1 4 7 8 . . . 17 3 . 3 1 Detach 61 | . 4 2 6 3 . 6 . 14 1 1 . . 2 3 3 5 . 1 . 5 2 . 3 . Swap 87 | . 1 2 4 7 1 2 3 10 5 8 2 2 2 . 2 8 1 3 2 22 . . . . Drop 176 | . 6 . 26 11 . . 5 44 . 9 . . 1 . 10 24 7 9 1 16 . . 7 . Fire 493 | 9 39 26 61 8 . 6 . 48 8 1 47 17 . 1 3 74 5 . 9 102 4 7 18 . Melee 124 | . . . 3 28 4 6 . . 4 19 5 . 5 3 6 26 . 15 . . . . . . Ram 5 | . . . . . . . . . . . . . . . . . . . . 3 . . . 2 Kick . | . . . . . . . . . . . . . . . . . . . . . . . . . Crush 1 | . 1 . . . . . . . . . . . . . . . . . . . . . . . Escape Stasis . | . . . . . . . . . . . . . . . . . . . . . . . . . Rewire 108 | . . . . . . . . . . . . . . . . 108 . . . . . . . . Trap . | . . . . . . . . . . . . . . . . . . . . . . . . . Miscellaneous . | . . . . . . . . . . . . . . . . . . . . . . . . . Route ------- -11/Scrapyard -10/Materials -10/Subcaves -8/Materials (discovered 3 exits: *Fac x3) -7/Factory (discovered 2 exits: *Fac / *Low) -7/Lower Caves -7/Lower Caves -7/Zion (discovered 2 exits: *Dee / *Pro) -7/Deep Caves -6/Proximity Caves -6/Factory (discovered 3 exits: *Fac / *Low x2) -6/Lower Caves -6/Lower Caves (discovered 2 exits: *Fac / *Dat) -6/Data Miner -5/Proximity Caves -5/Factory (discovered 4 exits: Upp x2 / *Ext x2) -5/Extension (discovered 2 exits: *Fac / *Cet) -5/Cetus (discovered 2 exits: *Fac / *Arc) -5/Archives (discovered 3 exits: *Fac / *Hub x2) -5/Hub_04(d) -4/Factory (discovered 2 exits: *Upp x2) -4/Upper Caves -4/Upper Caves -4/Zhirov -3/Proximity Caves History --------- Turn | Location | Event 7 | -11/Scrapyard | Discovered new exit (range 15) 119 | -11/Scrapyard | Entered Materials 315 | -10/Materials | Build established: Mutant 819 | -10/Materials | Derelicts attacked the area 822 | -10/Materials | Discovered new exit (range 5) 834 | -10/Materials | Core integrity fell below 50% 842 | -10/Materials | Entered Subcaves 853 | -10/Subcaves | Learned Materials trap positions 865 | -10/Subcaves | Lost 3 parts (1p1n1w) 1038 | -10/Subcaves | Disturbed a concealed Subdweller 1050 | -10/Subcaves | Disturbed a concealed Subdweller 1053 | -10/Subcaves | Core integrity fell below 20% 1264 | -10/Subcaves | Discovered new exit (range 13) 1291 | -10/Subcaves | A Subdweller sparked back to life 1291 | -10/Subcaves | A Subdweller sparked back to life 1298 | -10/Subcaves | Entered Materials 1298 | -8/Materials | Evolved 4 slots: Propulsion x2, Utility x1, Weapon x1 1299 | -8/Materials | Loaded intel: 16 trap records 2105 | -8/Materials | Build established: Scavenger-Tank 2367 | -8/Materials | Discovered new exit (range 17) 2367 | -8/Materials | Identified exit to Factory 2832 | -8/Materials | Entered Factory 2832 | -7/Factory | Evolved 2 slots: Propulsion x1, Utility x1 2982 | -7/Factory | Discovered new exit (range 5) 2986 | -7/Factory | Identified exit to Factory 3173 | -7/Factory | Discovered new exit (range 14) 3183 | -7/Factory | Identified exit to Lower Caves 3183 | -7/Factory | Entered Lower Caves 3241 | -7/Lower Caves | Encountered a Warlord checkpoint 3260 | -7/Lower Caves | Discovered new exit (range 5) 3261 | -7/Lower Caves | Identified exit to Lower Caves 3262 | -7/Lower Caves | Entered another Lower Caves area 3294 | -7/Lower Caves | Learned Factory garrison access intel 3594 | -7/Lower Caves | Discovered new exit (range 4) 3596 | -7/Lower Caves | Identified exit to Zion 3597 | -7/Lower Caves | Entered Zion 3605 | -7/Zion | Identified exit to Proximity Caves 3672 | -7/Zion | Build established: Mutant 3816 | -7/Zion | Found CR-A16's Pointy Stick 4093 | -7/Zion | Given the Hacking Drone Bay 4097 | -7/Zion | Found Prototype Device 4097 | -7/Zion | Identified Hacking Drone Bay 4119 | -7/Zion | Learned location of Warlord (-5) 4281 | -7/Zion | Acquired unknown access codes intercepted by a Zionite 4686 | -7/Zion | Gained Derelict followers 4920 | -7/Zion | Met Imprinter 5065 | -7/Zion | Received a hallucinogenic algorithm 5165 | -7/Zion | Opened final containment barrier to the Deep Caves 5198 | -7/Zion | Discovered new exit (range 5) 5202 | -7/Zion | Saw the warning signs outside the Deep Caves entrance 5213 | -7/Zion | Identified exit to Deep Caves 5218 | -7/Zion | Entered Deep Caves 5218 | -7/Deep Caves | Accompanied by 4 allies 5411 | -7/Deep Caves | Z-Facility disabled 5416 | -7/Deep Caves | Attacked by Z-Imprinter 5436 | -7/Deep Caves | Destroyed Z-Imprinter 5465 | -7/Deep Caves | Lost 4 parts (1p1n2u) 5755 | -7/Deep Caves | Found Prototype Protection 5755 | -7/Deep Caves | Identified Zio. Weapon Casing 6322 | -7/Deep Caves | Found Zio. Weapon Casing 6476 | -7/Deep Caves | System corruption reached 10% 6510 | -7/Deep Caves | Found Corrupted Prototype Device 6510 | -7/Deep Caves | Identified Zio. Metafield Generator 6564 | -7/Deep Caves | System corruption reached 30% 6761 | -7/Deep Caves | Build established: Scavenger-Mutant 6828 | -7/Deep Caves | Discovered new exit (range 7) 6901 | -7/Deep Caves | Spotted AG-29714 6904 | -7/Deep Caves | Triggered Deep Caves wall 6904 | -7/Deep Caves | Spotted AS-60618 6905 | -7/Deep Caves | DAS Turret deployed 6905 | -7/Deep Caves | Exposed GOLEM chamber 6907 | -7/Deep Caves | Spotted AS-10463 6941 | -7/Deep Caves | Entered Proximity Caves 6954 | -6/Proximity Caves | Lost 3 parts (1p1n1u) 6974 | -6/Proximity Caves | Attracted the attention of an 0b10 checkpoint 7033 | -6/Proximity Caves | Lost 4 parts (4n) 7124 | -6/Proximity Caves | Discovered exit to Factory (range 7) 7133 | -6/Proximity Caves | Entered Factory 7133 | -6/Factory | Evolved 2 slots: Propulsion x1, Utility x1 7134 | -6/Factory | Loaded intel: 4 garrison access locations 7216 | -6/Factory | Imp. Hacking Suite fried by hacking feedback 7407 | -6/Factory | Identified exit to Lower Caves 7421 | -6/Factory | Discovered new exit (range 9) 7511 | -6/Factory | Entered Lower Caves 7533 | -6/Lower Caves | Learned location of Extension (-5) 7843 | -6/Lower Caves | Attracted the attention of an 0b10 outpost 7906 | -6/Lower Caves | Discovered new exit (range 4) 7911 | -6/Lower Caves | Entered another Lower Caves area 7911 | -6/Lower Caves | Discovered new exit (range 9) 8149 | -6/Lower Caves | Encountered a Warlord checkpoint 8160 | -6/Lower Caves | Discovered new exit (range 8) 8164 | -6/Lower Caves | Entered Data Miner 8164 | -6/Data Miner | Discovered new exit (range 6) 8173 | -6/Data Miner | Met Data Miner 8185 | -6/Data Miner | Learned location of Section 7 (-3) 8185 | -6/Data Miner | Acquired the access code to Warlord's prototype stash 8192 | -6/Data Miner | Received God Mode back door access code from Data Miner 8278 | -6/Data Miner | Interfaced with the Data Conduit 8301 | -6/Data Miner | Entered Proximity Caves 8319 | -5/Proximity Caves | Learned 4 Factory zone layouts 8330 | -5/Proximity Caves | Lost 4 parts (3n1u) 8398 | -5/Proximity Caves | Spotted B-75 Beast 8425 | -5/Proximity Caves | Attracted the attention of an 0b10 outpost 8428 | -5/Proximity Caves | Discovered new exit (range 13) 8441 | -5/Proximity Caves | Entered Factory 8441 | -5/Factory | Evolved 2 slots: Power x1, Propulsion x1 8443 | -5/Factory | Loaded intel: 268 machine locations 8668 | -5/Factory | Identified exit to Upper Caves 8668 | -5/Factory | Identified exit to Extension 8697 | -5/Factory | Intercept squad dispatched 8705 | -5/Factory | Found Launcher Loader 8706 | -5/Factory | Entered Extension 8707 | -5/Extension | Loaded intel: 37 machine locations 8950 | -5/Extension | Build established: Hacker-Mutant 9195 | -5/Extension | Rescued a captive Derelict 9210 | -5/Extension | Rescued a captive Derelict 9281 | -5/Extension | Destroyed 10 combat bots 9281 | -5/Extension | Lost 3 parts (1n1u1w) 9290 | -5/Extension | Build established: Scavenger-Tank 9645 | -5/Extension | Spotted B-75 Beast 9651 | -5/Extension | Spotted B-75 Beast 9718 | -5/Extension | Lost 4 allies 9729 | -5/Extension | Core integrity fell below 50% 9732 | -5/Extension | Destroyed B-75 Beast 9755 | -5/Extension | Lost 15 parts (2p7n3u3w) 9899 | -5/Extension | Discovered new exit (range 16) 9900 | -5/Extension | Discovered new exit (range 15) 9988 | -5/Extension | Build established: Scavenger-Mutant 10197 | -5/Extension | Rescued a captive Derelict 10289 | -5/Extension | Rescued a captive Derelict 10315 | -5/Extension | Rescued a captive Derelict 10324 | -5/Extension | Rescued a captive Derelict 10332 | -5/Extension | Rescued a captive Derelict 10332 | -5/Extension | Rescued a captive Derelict 10376 | -5/Extension | Rescued a captive Derelict 10542 | -5/Extension | Lost 4 allies 10556 | -5/Extension | Disrupted transfer network 10630 | -5/Extension | Rescued a captive Derelict 10709 | -5/Extension | Rescued A7 10863 | -5/Extension | Build established: Scavenger-Tank 10874 | -5/Extension | Disrupted transfer network 10893 | -5/Extension | Entered Cetus 10893 | -5/Cetus | Accompanied by 7 allies (A7) 10894 | -5/Cetus | Loaded intel: 24 machine locations 10895 | -5/Cetus | Destroyed 8 combat bots 10898 | -5/Cetus | Acquired a Cetus Manufacturing Module code from A7 10910 | -5/Cetus | Spotted Cetus Guard 10910 | -5/Cetus | Spotted Cetus Guard 10914 | -5/Cetus | Destroyed Cetus Guard 10915 | -5/Cetus | Destroyed Cetus Guard 10915 | -5/Cetus | Spotted Cetus Guard 10916 | -5/Cetus | Destroyed Cetus Guard 10920 | -5/Cetus | Destroyed Cetus Guard 10981 | -5/Cetus | Started Cetus Manufacturing Module 11006 | -5/Cetus | Manufactured an Enhanced Grunt 11031 | -5/Cetus | Manufactured an Enhanced Grunt 11056 | -5/Cetus | Manufactured an Enhanced Grunt 11070 | -5/Cetus | Discovered new exit (range 15) 11081 | -5/Cetus | Manufactured an Enhanced Grunt 11093 | -5/Cetus | Spotted Cetus Guard 11093 | -5/Cetus | Spotted Cetus Guard 11097 | -5/Cetus | Destroyed Cetus Guard 11097 | -5/Cetus | Destroyed Cetus Guard 11097 | -5/Cetus | Spotted Cetus Guard 11097 | -5/Cetus | Spotted Cetus Guard 11100 | -5/Cetus | Destroyed Cetus Guard 11103 | -5/Cetus | Destroyed Cetus Guard 11106 | -5/Cetus | Manufactured an Enhanced Grunt 11119 | -5/Cetus | Discovered new exit (range 16) 11126 | -5/Cetus | Met Revision 17 11129 | -5/Cetus | System corruption reached 10% 11271 | -5/Cetus | Entered Archives 11271 | -5/Archives | Accompanied by 12 allies (A7) 11272 | -5/Archives | Loaded intel: 8 machine locations 11326 | -5/Archives | Unable to access archive contents 11330 | -5/Archives | Lost 3 allies 11338 | -5/Archives | Unable to access archive contents 11380 | -5/Archives | Discovered new exit (range 15) 11416 | -5/Archives | Discovered new exit (range 16) 11428 | -5/Archives | Discovered new exit (range 15) 11649 | -5/Archives | Build established: Scavenger-Mutant 12093 | -5/Archives | Entered Hub_04(d) 12093 | -5/Hub_04(d) | Accompanied by 7 allies 12094 | -5/Hub_04(d) | Loaded intel: 93 machine locations 12120 | -5/Hub_04(d) | Discovered new exit (range 5) 12173 | -5/Hub_04(d) | Network Hub disabled 12177 | -5/Hub_04(d) | Spotted Lightning 12196 | -5/Hub_04(d) | Spotted Lightning 12196 | -5/Hub_04(d) | Spotted Lightning 12196 | -5/Hub_04(d) | Entered Factory 12196 | -4/Factory | Evolved 2 slots: Utility x2 12197 | -4/Factory | Loaded intel: 322 machine locations 12224 | -4/Factory | Lost 7 allies 12351 | -4/Factory | System corruption reached 10% 12505 | -4/Factory | System corruption reached 30% 12524 | -4/Factory | Lost 4 parts (3n1w) 12863 | -4/Factory | Build established: Scavenger-Skirmisher 12888 | -4/Factory | Intercept squad dispatched 12918 | -4/Factory | Spotted Tracker 12929 | -4/Factory | Destroyed Tracker 12939 | -4/Factory | Spotted Combat Programmer 12949 | -4/Factory | Destroyed Combat Programmer 13135 | -4/Factory | Identified exit to Upper Caves 13186 | -4/Factory | Spotted B-86 Titan 13287 | -4/Factory | Destroyed B-86 Titan 13311 | -4/Factory | Core integrity fell below 50% 13333 | -4/Factory | Lost 17 parts (1p7n4u5w) 13363 | -4/Factory | Entered Upper Caves 13394 | -4/Upper Caves | Lost 3 parts (2n1u) 13620 | -4/Upper Caves | Build established: Mutant 13891 | -4/Upper Caves | Spotted B-86 Titan 13892 | -4/Upper Caves | Core integrity fell below 20% 14093 | -4/Upper Caves | Discovered new exit (range 6) 14097 | -4/Upper Caves | Identified exit to Upper Caves 14099 | -4/Upper Caves | Entered another Upper Caves area 14151 | -4/Upper Caves | Spotted B-86 Titan 14208 | -4/Upper Caves | Build established: Derelict-Mutant 14370 | -4/Upper Caves | Discovered new exit (range 10) 14377 | -4/Upper Caves | Encountered a Warlord checkpoint 14378 | -4/Upper Caves | Identified exit to Zhirov 14388 | -4/Upper Caves | Entered Zhirov 14388 | -4/Zhirov | Discovered new exit (range 3) 14406 | -4/Zhirov | Met Zhirov 14434 | -4/Zhirov | Zhirov requested help retrieving the SGEMP Prototype 14453 | -4/Zhirov | Found Alien Artifact 14453 | -4/Zhirov | Identified Integrated Dissipator 14453 | -4/Zhirov | Installed Integrated Dissipator, increased core heat dissipation (+20) 14940 | -4/Zhirov | Found Alien Artifact 15014 | -4/Zhirov | Identified exit to Proximity Caves 15015 | -4/Zhirov | Entered Proximity Caves 15304 | -3/Proximity Caves | Lost 3 parts (1u2w) 15374 | -3/Proximity Caves | Spotted B-86 Titan 15382 | -3/Proximity Caves | Destroyed by B-86 Titan with Hardcell Cannon Last Messages --------------- 15301_ System corrupted: Adv. Myomer Leg rejected. 15301_ Acquired Adv. Myomer Leg. 15316_ System corrupted: Matter fused (-5). 15331_ System corrupted: Adv. Myomer Leg rejected. 15331_ Acquired Adv. Myomer Leg. 15343_ System corrupted: Adv. Myomer Leg stumbles. 15347_ System corrupted: Matter fused (-6). 15350_ Imp. Target Analyzer destroyed. 15353_ Critical hit (Burn: +50). 15365_ System corrupted: Matter fused (-9). 15374_ S-43 Plague springs to life. 15375_ Critical hit (Meltdown: +370). 15375_ G-67 Veteran Adv. Heat Sink blasted off. 15379_ Adv. Myomer Leg destroyed. 15379_ Imp. Reaction Control System destroyed. 15380_ System corrupted: Energy discharge (-17). 15382_ Adv. Force Field destroyed. Map ----- +----------------------------------------------------+ | ?????????????????????????????????????????????????? | | ?????????????????????????????????????????????????? | | ?????????????????????????????????????????????????? | | ?????????????????????????????????????????????????? | | ?????????????????????????????????????????????????? | | ?????????????????????????????????????????????????? | | ?????????????????????????????????????????????????? | | ????? ???????????????????????????????????????????? | | ????? ???????????????????????????????????????????? | | ?????# ???????#??????????????????????????????????? | | ?????# ??????? ##????? #??????????????????????? | | ?????? ??????? ##???# ###???????????????????? | | ?????? ###???? #???? ####????????????????? | | ?????? #???? s#???? #??????????????? | | ??????# #????# #???? ###????????????? | | ??????# #????# #???? BB #????????????? | | ??????# #????# ##???# BB ???????????? | | ??????# #????# ##??# ????????????? | | ?????## ###### #?## ???????????? | | ????## #### ????????????? | | ????# ### ????????????? | | ????## #?# ??????????????? | | ?????# ## ##??# ????????????????? | | ?????# ### ####### ???????????????????? | | ?????# ### #?## #?????????????????????? | | ?????# ## #?# @ #?????????????????????? | | ###??## # g### gl s %##?????????????????????? | | ##?## gl !s s #####??????????????????????? | | ### ## l ###??????????????????????????? | | ## ######## ##????????????????????????????? | | ## ##?????????????????????????????? | | ## #######l ???????????????????????????????? | | ## #????#l ???????????????????????????????? | | ### #????# ???????????????????????????????? | | #?## #????Y ???????????????????????????????? | | #??# #???l ???????????????????????????????? | | #??# #?? #? ????????????????????????????????? | | ##?# #?"""?? ????????????????????????????????? | | ### ####### ####???????????????????????????? | | ## #???????????????????????????? | | ### ##????????????????????????????????? | | # #?????????????????????????????? | | ## #?????????????????????????????? | | ?# ## ###?????????????????????????????? | | ?# ## ##?? ##???????????????????????????????? | | ?#### ##????#????????????????????????????????? | | ????# #??????????????????????????????????????? | | ????# #??????????????????????????????????????? | | ????## #?????????????????????????????????????? | | ?????# #?????????????????????????????????????? | +----------------------------------------------------+ Best States ------------- Heat Dissipation 97 Coolant Potential 100 Energy Generation 45 Energy Capacity 1200 Matter Stores 300 Matter Capacity 300 Sight Range 20 Robot Scan Range 16 Terrain Scan Range 20 Terrain Scan Density 210 ECM Strength 1 Additional Mass Support 9 Armor Coverage 400 Resistance: TH 10 Power Shielding 90 Weapon Shielding 100 Phase Shifting 15 Evasion (%) 80 Melee Accuracy 8 Target Analysis 6 Recoil Reduction 4 Energy Filtering 30 Offensive Hacking 40 Defensive Hacking 14 Authchip Count 1 Item Schematics ----------------- Force Field | -7/Zion | Archive Gatling Laser | -7/Zion | Archive Imp. Trap Extractor | -7/Zion | Archive Imp. Hacking Suite | -7/Zion | Archive KE Penetrator | -7/Zion | Archive Imp. Shield Generator | -7/Zion | Archive Energy Well | -7/Zion | Archive Fusion Compressor | -7/Zion | Archive Adv. Terrain Scan Processor | -7/Zion | Archive Coil Gun | -7/Zion | Archive Power Maul | -7/Zion | Archive Imp. Actuator Array | -7/Zion | Archive Matter Filter | -7/Zion | Archive Imp. Arc Projector | -7/Zion | Archive Combat Drone Bay | -6/Data Miner | Free Lgt. Regenerative Plating | -6/Data Miner | Free Cld. Gravmag System | -6/Data Miner | Free Exp. Heat Sink | -6/Data Miner | Free Plasma Sword | -6/Data Miner | Free Imp. Linear Gravjet | -6/Data Miner | Free Adv. Target Analyzer | -6/Data Miner | Free Force Lance | -6/Data Miner | Free Com. HERF Cannon | -6/Data Miner | Free Assault Drone Bay | -4/Zhirov | Free Exp. Optical Array | -4/Zhirov | Free Imp. Arc Thrower | -4/Zhirov | Free Robot Schematics ------------------ K-01 Serf | -7/Zion | Archive M-28 Smith | -7/Zion | Archive M-14 Sweeper | -7/Zion | Archive A-15 Conveyor | -6/Data Miner | Free S-27 Virus | -6/Data Miner | Free H-66 Slayer | -6/Data Miner | Free G-67 Veteran | -6/Data Miner | Free E-15 Imp | -6/Data Miner | Free A-27 Freighter | -6/Data Miner | Free M-30 Cleanser | -6/Data Miner | Free Fabricated ------------ Nothing Repaired ---------- Nothing Alien Tech Used ----------------- Integrated Dissipator Achievements -------------- That's One Door That Should Stay Closed Challenges ------------ None Game ------ Seed CarbideImprovedOptics Manual? 0 Play Time 04:53:04 Cumulative 176.4 hours Start 2025.05.11 @ 23:39:45 End 2025.05.12 @ 15:35:29 Sessions 1 Manual Loads 0 Difficulty Rogue Special Mode None Game No. 97 Rogue 89 Adventurer 8 Explorer 0 Win Type - Total 4 Types 2/0/1/1/0/0/0/0/0/0 Lore% 71 Gallery% 68 Achievement% 58 Wizard Run 0 Options --------- Layout 2 ASCII 0 Keyboard 1 Movement Numpad Keybinds 1 Fullscreen 1 Font 48/Smallcaps Map View 50x44 Zoom Use 3% Tactical HUD 1 Map Filters NONE Filters NONE Steam 1 RUN: 2de86085-496d-4adf-94b7-13354a4f61a5